bitfinex/quotes_BTCUSD_20241020
["timestamp","ask_amount","ask_price","bid_price","bid_amount"]
[1729463885085,0.00499999,69134.0,69133.0,0.89330817]
[1729463885513,0.00499999,69134.0,69133.0,0.89930817]
[1729463885717,0.00499999,69134.0,69133.0,0.89630817]
[1729463885942,0.00499999,69134.0,69133.0,0.89330817]
[1729463886177,0.00499999,69134.0,69133.0,0.89630817]
[1729463886402,0.00499999,69134.0,69133.0,0.89930817]
[1729463886612,0.00499999,69137.0,69133.0,0.98893899]
[1729463886814,0.21697151,69135.0,69134.0,0.00850606]
[1729463887027,0.31697151,69135.0,69134.0,0.88647606]
[1729463887210,0.31697151,69135.0,69134.0,0.89312565]
[1729463888114,0.31697151,69135.0,69134.0,0.89612565]
[1729463888468,0.31697151,69135.0,69134.0,0.89312565]
[1729463888668,0.31697151,69135.0,69134.0,0.89912565]
[1729463889068,0.31697151,69135.0,69134.0,0.88661959]
[1729463889293,0.31697151,69135.0,69134.0,0.88761959]
[1729463889494,0.231415,69140.0,69134.0,0.88761959]
[1729463889495,0.10499999,69139.0,69134.0,0.89605425]
[1729463889871,0.1,69136.0,69134.0,0.88761959]
[1729463890547,0.31697151,69135.0,69134.0,0.89061959]
[1729463890775,0.31697151,69135.0,69134.0,0.88761959]
[1729463891218,0.31697151,69135.0,69134.0,0.97638155]
[1729463891442,0.1,69138.0,69134.0,0.97638155]
[1729463891657,0.33268651,69135.0,69134.0,0.97938155]
[1729463891885,0.1,69135.0,69134.0,0.89061959]
[1729463892347,0.1,69135.0,69134.0,0.88761959]
[1729463892348,0.095,69135.0,69134.0,0.88761959]
[1729463892602,0.210715,69135.0,69134.0,0.88461959]
[1729463892832,0.01665974,69135.0,69134.0,0.88761959]
[1729463893270,0.00499999,69139.0,69134.0,0.88461959]
[1729463893476,0.115713,69137.0,69134.0,0.97328155]
[1729463893667,0.231421,69138.0,69134.0,0.97328155]
[1729463893926,0.231421,69138.0,69134.0,0.97628155]
[1729463894154,0.001656,69136.0,69134.0,0.97628155]
[1729463894364,0.101656,69136.0,69134.0,0.97328155]
[1729463894580,0.101656,69136.0,69134.0,0.97628155]
[1729463895065,0.1,69135.0,69134.0,0.97928155]
[1729463895305,0.1,69135.0,69134.0,0.97628155]
[1729463895718,0.215715,69135.0,69134.0,0.97928155]
[1729463895923,0.1,69135.0,69134.0,0.97928155]
[1729463896134,0.215715,69135.0,69134.0,0.97628155]
[1729463896576,0.001656,69136.0,69134.0,0.89061959]
[1729463896789,0.215715,69135.0,69134.0,0.89061959]
[1729463897001,0.215715,69135.0,69134.0,0.88761959]
[1729463897427,0.1,69135.0,69134.0,0.89061959]
[1729463897688,0.1,69135.0,69134.0,0.88761959]
[1729463897917,0.215715,69135.0,69134.0,0.89061959]
[1729463898142,0.215715,69135.0,69134.0,0.88761959]
[1729463898363,0.215715,69135.0,69134.0,0.88461959]
[1729463898584,0.215715,69135.0,69134.0,0.89061959]
[1729463899020,0.215715,69135.0,69134.0,0.88761959]
[1729463899436,0.215715,69135.0,69134.0,0.89061959]
[1729463899852,0.215715,69135.0,69134.0,0.88761959]
[1729463900309,0.215715,69135.0,69134.0,0.89061959]
[1729463900520,0.215715,69135.0,69134.0,0.97996435]
[1729463900731,0.215715,69135.0,69134.0,0.97696435]
[1729463900939,0.215715,69135.0,69134.0,0.97996435]
[1729463901347,0.215715,69135.0,69134.0,0.88761959]
[1729463901884,0.215715,69135.0,69134.0,0.89061959]
[1729463902329,0.215715,69135.0,69134.0,0.88761959]
[1729463902778,0.215715,69135.0,69134.0,0.89061959]
[1729463903208,0.215715,69135.0,69134.0,0.88761959]
[1729463903413,0.215715,69135.0,69134.0,0.89061959]
[1729463904090,0.22071699,69134.0,69133.0,0.000828]
[1729463904736,0.22071699,69134.0,69133.0,0.434768]
[1729463904737,0.215717,69134.0,69133.0,0.434768]
[1729463905451,0.215717,69134.0,69133.0,0.44324632]
[1729463906590,0.43268851,69134.0,69133.0,0.44324632]
[1729463906799,0.4376885,69134.0,69133.0,0.44324632]
[1729463907670,0.4376885,69134.0,69133.0,0.434768]
[1729463907886,0.4376885,69134.0,69133.0,0.445291]
[1729463908565,0.4376885,69134.0,69133.0,0.45896452]
[1729463909473,0.4376885,69134.0,69133.0,0.50404397]
[1729463909679,0.4376885,69134.0,69133.0,0.50504397]
[1729463910132,0.4376885,69134.0,69133.0,0.50804397]
[1729463910366,0.4376885,69134.0,69133.0,0.50504397]
[1729463910848,0.4376885,69134.0,69133.0,0.50804397]
[1729463911087,0.4376885,69134.0,69133.0,0.50504397]
[1729463911559,0.4376885,69134.0,69133.0,0.50804397]
[1729463911795,0.4376885,69134.0,69133.0,0.48015153]
[1729463912024,0.4376885,69134.0,69133.0,0.50819284]
[1729463912251,0.4376885,69134.0,69133.0,0.53608949]
[1729463912486,0.4376885,69134.0,69133.0,0.53308949]
[1729463913131,0.4376885,69134.0,69133.0,0.53608949]
[1729463913159,0.4376885,69134.0,69133.0,0.53308949]
[1729463913607,0.4376885,69134.0,69133.0,0.53608949]
[1729463914089,0.4376885,69134.0,69133.0,0.53308949]
[1729463914348,0.22071699,69134.0,69133.0,0.53008949]
[1729463914581,0.22071699,69134.0,69133.0,0.53608949]
[1729463914817,0.22071699,69134.0,69133.0,0.53508949]
[1729463915049,0.22071699,69134.0,69133.0,0.54641492]
[1729463915306,0.22071699,69134.0,69133.0,0.54941492]
[1729463915532,0.22071699,69134.0,69133.0,0.55041492]
[1729463916008,0.22071699,69134.0,69133.0,0.53308949]
[1729463916471,0.22071699,69134.0,69133.0,0.53008949]
[1729463916696,0.22071699,69134.0,69133.0,0.53308949]
[1729463916943,0.22071699,69134.0,69133.0,0.54741078]
[1729463917161,0.4376885,69134.0,69133.0,0.53308949]
[1729463917390,0.22237299,69134.0,69133.0,0.53608949]
[1729463918604,0.22237299,69134.0,69133.0,0.51892232]
[1729463918829,0.22237299,69134.0,69133.0,0.53608321]
[1729463919057,0.22237299,69134.0,69133.0,0.53607863]
[1729463919289,0.22237299,69134.0,69133.0,0.50818817]
[1729463919519,0.22237299,69134.0,69133.0,0.49102768]
[1729463920238,0.22237299,69134.0,69133.0,0.72400313]
[1729463920239,0.001656,69134.0,69133.0,0.72400313]
[1729463920474,0.001656,69134.0,69133.0,0.85684267]
[1729463920934,0.21697151,69154.0,69133.0,0.85684267]
[1729463920935,0.115697,69146.0,69145.0,0.002]
[1729463920963,0.347091,69146.0,69145.0,0.002]
[1729463921215,0.115697,69146.0,69145.0,0.67369177]
[1729463921929,0.115697,69146.0,69145.0,0.65650234]
[1729463922640,0.215697,69146.0,69145.0,0.63415739]
[1729463922869,0.215697,69146.0,69145.0,0.65643745]
[1729463923106,0.215697,69146.0,69145.0,0.73593861]
[1729463923383,0.215697,69146.0,69145.0,0.67157706]
[1729463923623,0.215697,69146.0,69145.0,0.67357706]
[1729463923862,0.215697,69146.0,69145.0,0.67557706]
[1729463924079,0.215697,69146.0,69145.0,0.67757706]
[1729463924793,0.215697,69146.0,69145.0,0.52861791]
[1729463925037,0.215697,69146.0,69145.0,0.51147836]
[1729463925493,0.211697,69146.0,69145.0,0.51147836]
[1729463925716,0.211697,69146.0,69145.0,0.5716401]
[1729463926179,0.211697,69146.0,69145.0,0.52176853]
[1729463926404,0.211697,69146.0,69145.0,0.48403553]
[1729463926628,0.211697,69146.0,69145.0,0.48592782]
[1729463926827,0.21669699,69146.0,69145.0,0.52968448]
[1729463927058,0.21669699,69146.0,69145.0,0.48692782]
[1729463927353,0.21669699,69146.0,69145.0,0.46883385]
[1729463927579,0.21669699,69146.0,69145.0,0.45915012]
[1729463927816,0.21669699,69146.0,69145.0,0.46115012]
[1729463928037,0.21669699,69146.0,69145.0,0.45815012]
[1729463928527,0.211697,69146.0,69145.0,0.45915012]
[1729463928764,0.21669699,69146.0,69145.0,0.46983799]
[1729463928985,0.21669699,69146.0,69145.0,0.45915012]
[1729463929212,0.21669699,69146.0,69145.0,0.46983777]
[1729463929450,0.211697,69146.0,69145.0,0.5089609]
[1729463929676,0.213351,69146.0,69145.0,0.46766301]
[1729463929911,0.213351,69146.0,69145.0,0.47266301]
[1729463930135,0.213351,69146.0,69145.0,0.47066301]
[1729463930362,0.213351,69146.0,69145.0,0.47066962]
[1729463930586,0.213351,69146.0,69145.0,0.52763057]
[1729463930821,0.213351,69146.0,69145.0,0.58849908]
[1729463931050,0.213351,69146.0,69145.0,0.53063057]
[1729463931296,0.213351,69146.0,69145.0,0.52963057]
[1729463931517,0.213351,69146.0,69145.0,0.53063057]
[1729463931735,0.213351,69146.0,69145.0,0.53263057]
[1729463931952,0.213351,69146.0,69145.0,0.47466962]
[1729463932182,0.213351,69146.0,69145.0,0.47266962]
[1729463932417,0.213351,69146.0,69145.0,0.47466962]
[1729463932881,0.213351,69146.0,69145.0,0.46966962]
[1729463933110,0.213351,69146.0,69145.0,0.47466962]
[1729463933571,0.213351,69146.0,69145.0,0.46966962]
[1729463933880,0.213351,69146.0,69145.0,0.47466962]
[1729463934307,0.213351,69146.0,69145.0,0.46397583]
[1729463934537,0.213351,69146.0,69145.0,0.47465635]
[1729463935244,0.213351,69146.0,69145.0,0.46397583]
[1729463935481,0.213351,69146.0,69145.0,0.45026556]
[1729463936668,0.213351,69146.0,69145.0,0.49716304]
[1729463936899,0.213351,69146.0,69145.0,0.64612219]
[1729463937606,0.213351,69146.0,69145.0,0.63455363]
[1729463937833,0.213351,69146.0,69145.0,0.58765615]
[1729463938084,0.213351,69146.0,69145.0,0.73435415]
[1729463938085,0.001654,69146.0,69145.0,0.73435415]
[1729463938343,0.001654,69146.0,69145.0,0.84560062]
[1729463938575,0.21697151,69161.0,69160.0,0.150673]
[1729463938808,0.21697151,69161.0,69160.0,0.75704498]
[1729463939038,0.21697151,69161.0,69160.0,0.7814235]
[1729463939273,0.000829,69172.0,69167.0,0.01]
[1729463939497,0.000829,69172.0,69167.0,0.62625468]
[1729463939498,0.116482,69172.0,69167.0,0.62625468]
[1729463939719,0.115657,69170.0,69167.0,0.62625468]
[1729463939947,0.000829,69172.0,69167.0,0.62625468]
[1729463939948,0.1,69168.0,69167.0,0.62625468]
[1729463940201,0.1,69168.0,69167.0,0.68888015]
[1729463940704,0.1,69168.0,69167.0,0.69388015]
[1729463940956,0.1,69170.0,69167.0,0.69188015]
[1729463941203,0.000829,69172.0,69171.0,0.035]
[1729463941469,0.000829,69172.0,69171.0,0.85249336]
[1729463941662,0.000829,69172.0,69171.0,0.73683836]
[1729463941889,0.116482,69172.0,69171.0,0.73683836]
[1729463942128,0.116482,69172.0,69171.0,0.62623468]
[1729463942584,0.116482,69172.0,69171.0,0.62620323]
[1729463943269,0.116482,69172.0,69171.0,0.62820323]
[1729463943731,0.116482,69172.0,69171.0,0.63020323]
[1729463943973,0.000829,69172.0,69171.0,0.80887855]
[1729463944175,0.000829,69172.0,69171.0,0.80034447]
[1729463944423,0.000829,69172.0,69171.0,0.80887439]
[1729463944654,0.000829,69172.0,69171.0,0.80887488]
[1729463944885,0.00057663,69172.0,69171.0,0.69121988]
[1729463945114,0.00057663,69172.0,69171.0,0.80487488]
[1729463945343,0.00057663,69172.0,69171.0,0.80787488]
[1729463945808,0.00057663,69172.0,69171.0,0.80487488]
[1729463946067,0.00057663,69172.0,69171.0,0.69984224]
[1729463946314,0.00057663,69172.0,69171.0,0.81849724]
[1729463946856,0.00057663,69172.0,69171.0,0.70184224]
[1729463947093,0.00057663,69172.0,69171.0,0.69221988]
[1729463947352,0.00057663,69172.0,69171.0,0.70484332]
[1729463947593,0.00057663,69172.0,69171.0,0.69421988]
[1729463948069,0.00057663,69172.0,69171.0,0.69421485]
[1729463948336,0.00057663,69172.0,69171.0,0.69221485]
[1729463948583,0.00057663,69172.0,69171.0,0.70483905]
[1729463948838,0.00057663,69172.0,69171.0,0.60381873]
[1729463948839,0.43320114,69172.0,69171.0,0.60381873]
[1729463949151,0.21622963,69172.0,69171.0,0.60319453]
[1729463949339,0.21622963,69172.0,69171.0,0.60619453]
[1729463949794,0.21622963,69172.0,69171.0,0.60119453]
[1729463949999,0.21622963,69172.0,69171.0,0.62719453]
[1729463950451,0.21622963,69172.0,69171.0,0.62419453]
[1729463950719,0.21622963,69172.0,69171.0,0.62619453]
[1729463950941,0.21622963,69172.0,69171.0,0.62919453]
[1729463951164,0.21622963,69172.0,69171.0,0.63119453]
[1729463951900,0.21622963,69172.0,69171.0,0.62620071]
[1729463952176,0.21622963,69172.0,69171.0,0.4472415]
[1729463952414,0.22122962,69172.0,69171.0,0.403956]
[1729463952648,0.41590321,69172.0,69171.0,0.18934311]
[1729463952881,0.50101899,69172.0,69171.0,0.10404392]
[1729463953145,0.215708,69139.0,69138.0,0.01855791]
[1729463953385,0.215715,69135.0,69134.0,0.012]
[1729463953605,0.215717,69134.0,69133.0,0.000828]
[1729463953836,0.215717,69134.0,69133.0,0.010828]
[1729463954063,0.215717,69134.0,69133.0,0.000828]
[1729463955460,0.22071699,69134.0,69133.0,0.000828]
[1729463956388,0.22071699,69134.0,69133.0,0.005828]
[1729463956613,0.22071699,69134.0,69133.0,0.003828]
[1729463956614,0.29804679,69134.0,69133.0,0.003828]
[1729463956882,0.29804679,69134.0,69133.0,0.000828]
[1729463957125,0.29804679,69134.0,69133.0,0.005828]
[1729463957355,0.29804679,69134.0,69133.0,0.003828]
[1729463957572,0.29804679,69134.0,69133.0,0.000828]
[1729463959157,0.22174679,69134.0,69133.0,0.000828]
[1729463959656,0.22071699,69134.0,69133.0,0.000828]
[1729463960355,0.215717,69134.0,69133.0,0.000828]
[1729463960598,0.22174679,69134.0,69133.0,0.000828]
[1729463962451,0.31190302,69134.0,69133.0,0.000828]
[1729463962920,0.22174679,69134.0,69133.0,0.000828]
[1729463963846,0.22753679,69134.0,69133.0,0.000828]
[1729463965321,0.115767,69104.0,69103.0,0.002]
[1729463965541,0.215767,69104.0,69103.0,0.16095915]
[1729463965968,0.215767,69104.0,69103.0,0.15895915]
[1729463966191,0.215767,69104.0,69103.0,0.16095915]
[1729463966673,0.215767,69104.0,69103.0,0.16395915]
[1729463966907,0.21697151,69116.0,69114.0,0.002]
[1729463966908,0.215749,69115.0,69114.0,0.002]
[1729463967151,0.215749,69115.0,69114.0,0.15095915]
[1729463967403,0.215755,69111.0,69110.0,0.002]
[1729463967654,0.215755,69111.0,69110.0,0.15095915]
[1729463967883,0.215755,69111.0,69110.0,0.19505506]
[1729463967884,0.1,69111.0,69110.0,0.19505506]
[1729463968115,0.1,69111.0,69110.0,0.27675506]
[1729463968600,0.1,69116.0,69111.0,0.023]
[1729463968840,0.1,69114.0,69113.0,0.023]
[1729463969075,0.1,69114.0,69113.0,0.60602915]
[1729463969292,0.1,69114.0,69113.0,0.61602915]
[1729463970645,0.1,69119.0,69116.0,0.01]
[1729463970885,0.231433,69135.0,69127.0,0.01]
[1729463971117,0.231433,69135.0,69131.0,0.01]
[1729463971360,0.33268951,69133.0,69132.0,0.60590915]
[1729463971834,0.21697151,69145.0,69135.0,0.033]
[1729463971835,0.115711,69138.0,69135.0,0.033]
[1729463972068,0.21697151,69145.0,69135.0,0.61588915]
[1729463972326,0.115706,69141.0,69135.0,0.69448915]
[1729463972547,0.21697151,69145.0,69135.0,0.69448915]
[1729463973010,0.115705,69141.0,69135.0,0.69648915]
[1729463973259,0.115708,69140.0,69135.0,0.69948915]
[1729463973531,0.21697151,69145.0,69135.0,0.79451807]
[1729463973761,0.21697151,69145.0,69144.0,0.038]
[1729463973986,0.21697151,69145.0,69144.0,0.62083915]
[1729463974211,0.21697151,69145.0,69144.0,0.62932784]
[1729463974673,0.11569,69151.0,69146.0,0.005]
[1729463974909,0.33265851,69152.0,69151.0,0.028]
[1729463975178,0.21697151,69152.0,69151.0,0.61578915]
[1729463975399,0.33265851,69152.0,69151.0,0.61578915]
[1729463975616,0.231342,69162.0,69151.0,0.68015482]
[1729463975841,0.43265851,69152.0,69151.0,0.53119567]
[1729463976062,0.215687,69152.0,69151.0,0.68215482]
[1729463976275,0.215687,69152.0,69151.0,0.68515482]
[1729463976726,0.215687,69152.0,69151.0,0.68215482]
[1729463976944,0.215687,69152.0,69151.0,0.68015482]
[1729463977157,0.215687,69152.0,69151.0,0.68215482]
[1729463977397,0.215687,69152.0,69151.0,0.61778915]
[1729463978330,0.215687,69152.0,69151.0,0.62078915]
[1729463978558,0.215687,69152.0,69151.0,0.61778915]
[1729463979014,0.215687,69152.0,69151.0,0.43683]
[1729463979251,0.35781293,69152.0,69151.0,0.01964664]
[1729463979481,0.215723,69130.0,69123.0,0.01]
[1729463979733,0.215723,69130.0,69120.0,0.06374369]
[1729463979734,0.115737,69122.0,69121.0,0.11629842]
[1729463980217,0.215737,69122.0,69121.0,0.01]
[1729463980235,0.215737,69122.0,69121.0,0.59297915]
[1729463981449,0.215737,69122.0,69121.0,0.61597915]
[1729463981696,0.215737,69122.0,69121.0,0.67807707]
[1729463981948,0.215737,69122.0,69121.0,0.61597915]
[1729463982175,0.215737,69122.0,69121.0,0.61797915]
[1729463982876,0.215737,69122.0,69121.0,0.61997915]
[1729463983128,0.215737,69122.0,69121.0,0.62637339]
[1729463983374,0.215737,69122.0,69121.0,0.68951073]
[1729463983846,0.347162,69132.0,69131.0,0.033]
[1729463984081,0.347162,69132.0,69131.0,0.61591915]
[1729463984565,0.347162,69132.0,69131.0,0.62232253]
[1729463984814,0.231432,69135.0,69134.0,0.033]
[1729463984815,0.115715,69135.0,69134.0,0.033]
[1729463985037,0.115715,69135.0,69134.0,0.61589915]
[1729463985278,0.115715,69135.0,69134.0,0.62229952]
[1729463985963,0.115715,69135.0,69134.0,0.63295783]
[1729463985964,0.215715,69135.0,69134.0,0.63295783]
[1729463986203,0.215715,69135.0,69134.0,0.70317684]
[1729463986428,0.215715,69135.0,69134.0,0.69451853]
[1729463986945,0.215715,69135.0,69134.0,0.69651853]
[1729463987167,0.215715,69135.0,69134.0,0.70717683]
[1729463987621,0.216543,69135.0,69134.0,0.71783526]
[1729463988312,0.216543,69135.0,69134.0,0.70717683]
[1729463989014,0.216543,69135.0,69134.0,0.71783909]
[1729463989472,0.216543,69135.0,69134.0,0.70718079]
[1729463989728,0.216543,69135.0,69134.0,0.63696178]
[1729463989951,0.216543,69135.0,69134.0,0.63696297]
[1729463991334,0.1,69142.0,69134.0,0.71496297]
[1729463991633,0.00557662,69172.0,69158.0,0.01]
[1729463991634,0.00057663,69172.0,69158.0,0.01]
[1729463991915,0.115662,69167.0,69166.0,0.01]
[1729463992171,0.115662,69167.0,69166.0,0.44374]
[1729463992638,0.115662,69167.0,69166.0,0.43874]
[1729463993106,0.115662,69167.0,69166.0,0.58769915]
[1729463993366,0.115662,69167.0,69166.0,0.63407315]
[1729463993599,0.115662,69167.0,69166.0,0.63207315]
[1729463993846,0.115662,69167.0,69166.0,0.63407315]
[1729463994087,0.215662,69167.0,69166.0,0.63407315]
[1729463994561,0.215662,69167.0,69166.0,0.43374]
[1729463994802,0.215662,69167.0,69166.0,0.43574]
[1729463995288,0.00057663,69172.0,69171.0,0.033]
[1729463995547,0.00057663,69172.0,69171.0,0.61566915]
[1729463995769,0.00057663,69172.0,69171.0,0.62418975]
[1729463996003,0.00057663,69172.0,69171.0,0.69902073]
[1729463996225,0.11622963,69172.0,69171.0,0.63483703]
[1729463996698,0.11622963,69172.0,69171.0,0.59318975]
[1729463996928,0.21622963,69172.0,69171.0,0.59118975]
[1729463997188,0.21622963,69172.0,69171.0,0.58266915]
[1729463997438,0.21622963,69172.0,69171.0,0.58666915]
[1729463997897,0.21622963,69172.0,69171.0,0.58466915]
[1729463998333,0.21622963,69172.0,69171.0,0.58666915]
[1729463998600,0.21622963,69172.0,69171.0,0.58466915]
[1729463999126,0.21622963,69172.0,69171.0,0.58266915]
[1729463999389,0.00057663,69172.0,69171.0,0.63484369]
[1729464000067,0.00057663,69172.0,69171.0,0.63884369]
[1729464000590,0.00057663,69172.0,69171.0,0.63684369]
[1729464000838,0.00057663,69172.0,69171.0,0.68924224]
[1729464001065,0.00057663,69172.0,69171.0,0.63684185]
[1729464001595,0.00057663,69172.0,69171.0,0.65048201]
[1729464001825,0.00057663,69172.0,69171.0,0.65248201]
[1729464002058,0.00057663,69172.0,69171.0,0.63884185]
[1729464002293,0.11622963,69172.0,69171.0,0.63884185]
[1729464002552,0.21622963,69172.0,69171.0,0.58666915]
[1729464003031,0.21622963,69172.0,69171.0,0.64633607]
[1729464003507,0.21622963,69172.0,69171.0,0.64233607]
[1729464003751,0.21622963,69172.0,69171.0,0.64433607]
[1729464004207,0.21622963,69172.0,69171.0,0.58266915]
[1729464004469,0.21622963,69172.0,69171.0,0.58466915]
[1729464005669,0.21622963,69172.0,69171.0,0.58266915]
[1729464006133,0.21622963,69172.0,69171.0,0.58466915]
[1729464007073,0.21622963,69172.0,69171.0,0.58666915]
[1729464007525,0.21622963,69172.0,69171.0,0.58266915]
[1729464007765,0.21622963,69172.0,69171.0,0.58666915]
[1729464008259,0.21622963,69172.0,69171.0,0.64633607]
[1729464008756,0.21622963,69172.0,69171.0,0.58666915]
[1729464009489,0.21622963,69172.0,69171.0,0.58466915]
[1729464009951,0.21622963,69172.0,69171.0,0.58666915]
[1729464010176,0.21622963,69172.0,69171.0,0.58266915]
[1729464010407,0.21622963,69172.0,69171.0,0.58466915]
[1729464010638,0.21622963,69172.0,69171.0,0.58666915]
[1729464011419,0.21622963,69172.0,69171.0,0.58466915]
[1729464011904,0.21622963,69172.0,69171.0,0.58666915]
[1729464012873,0.21622963,69172.0,69171.0,0.58466915]
[1729464013312,0.21622963,69172.0,69171.0,0.58666915]
[1729464013572,0.21622963,69172.0,69171.0,0.43571]
[1729464013795,0.21622963,69172.0,69171.0,0.43771]
[1729464014091,0.64975257,69172.0,69171.0,0.38032794]
[1729464014335,0.64975257,69172.0,69171.0,0.37289965]
[1729464014565,0.64975257,69172.0,69171.0,0.03752865]
[1729464014566,0.49879342,69172.0,69171.0,0.03752865]
[1729464014787,0.49879342,69172.0,69171.0,0.03952865]
[1729464015031,0.49752962,69172.0,69171.0,0.03952865]
[1729464015538,0.49252963,69172.0,69171.0,0.03752865]
[1729464015762,0.21622963,69172.0,69171.0,0.03952865]
[1729464016024,0.21622963,69172.0,69171.0,0.03752865]
[1729464016737,0.21622963,69172.0,69171.0,0.03552865]
[1729464016978,0.21722963,69172.0,69171.0,0.03752865]
[1729464017218,0.21722963,69172.0,69171.0,0.03552865]
[1729464017457,0.11622963,69172.0,69171.0,0.1844878]
[1729464017693,0.11622963,69172.0,69171.0,0.20393658]
[1729464017940,0.00057663,69172.0,69171.0,0.36313741]
[1729464018172,0.00057663,69172.0,69171.0,0.37681273]
[1729464018400,0.00057663,69172.0,69171.0,0.42070632]
[1729464018661,0.00057663,69172.0,69171.0,0.38749058]
[1729464018884,0.00057663,69172.0,69171.0,0.38549058]
[1729464019131,0.00057663,69172.0,69171.0,0.39249058]
[1729464019353,0.00057663,69172.0,69171.0,0.46689058]
[1729464019577,0.00057663,69172.0,69171.0,0.46688869]
[1729464019818,0.00057663,69172.0,69171.0,0.52648663]
[1729464020034,0.00057663,69172.0,69171.0,0.52848663]
[1729464020500,0.00057663,69172.0,69171.0,0.52648663]
[1729464020976,0.00057663,69172.0,69171.0,0.48797022]
[1729464021204,0.00057663,69172.0,69171.0,0.37231522]
[1729464021435,0.00057663,69172.0,69171.0,0.37031522]
[1729464021671,0.00057663,69172.0,69171.0,0.36831522]
[1729464021896,0.00057663,69172.0,69171.0,0.41283163]
[1729464022125,0.00057663,69172.0,69171.0,0.42793921]
[1729464022383,0.00057663,69172.0,69171.0,0.54359421]
[1729464022616,0.00057663,69172.0,69171.0,0.42993921]
[1729464022841,0.00057663,69172.0,69171.0,0.3874228]
[1729464023058,0.00057663,69172.0,69171.0,0.3894228]
[1729464023278,0.00057663,69172.0,69171.0,0.3874228]
[1729464023522,0.00057663,69172.0,69171.0,0.5030778]
[1729464023809,0.00057663,69172.0,69171.0,0.55403551]
[1729464024050,0.00057663,69172.0,69171.0,0.5150778]
[1729464024316,0.000819,69174.0,69173.0,0.158652]
[1729464024565,0.000819,69174.0,69173.0,1.32138156]
[1729464024797,0.000819,69174.0,69173.0,1.34273348]
[1729464025054,0.000819,69174.0,69173.0,1.34473348]
[1729464025241,0.000819,69174.0,69173.0,1.33549887]
[1729464025511,0.000819,69174.0,69173.0,1.3917456]
[1729464025695,0.000819,69174.0,69173.0,1.37951614]
[1729464025919,0.000819,69174.0,69173.0,1.33549887]
[1729464026152,0.000819,69174.0,69173.0,1.33349887]
[1729464026399,0.000819,69174.0,69173.0,1.32837265]
[1729464026641,0.000819,69178.0,69177.0,0.140645]
[1729464026861,0.000819,69178.0,69177.0,1.38385144]
[1729464027088,0.21697151,69194.0,69191.0,0.130621]
[1729464027320,0.21697151,69194.0,69191.0,1.20142637]
[1729464027545,0.21779051,69202.0,69191.0,1.24990558]
[1729464027762,0.21697151,69201.0,69191.0,1.43450558]
[1729464027986,0.21697151,69201.0,69191.0,1.55099788]
[1729464028216,0.000819,69202.0,69191.0,1.62719788]
[1729464028443,0.000819,69202.0,69201.0,0.153605]
[1729464028664,0.21779051,69202.0,69201.0,1.04083253]
[1729464028891,0.116422,69202.0,69201.0,1.04752923]
[1729464029114,0.116422,69202.0,69201.0,1.07262992]
[1729464029362,0.116422,69202.0,69201.0,1.07762992]
[1729464029580,0.000819,69202.0,69201.0,1.07762992]
[1729464029807,0.000819,69202.0,69201.0,1.07962992]
[1729464030028,0.000819,69202.0,69201.0,1.07462992]
[1729464030287,0.116422,69202.0,69201.0,1.05662992]
[1729464030726,0.000819,69202.0,69201.0,1.05662992]
[1729464030949,0.000819,69202.0,69201.0,1.05862992]
[1729464031186,0.000819,69202.0,69201.0,1.05362992]
[1729464031187,0.116422,69202.0,69201.0,1.05362992]
[1729464031407,0.116422,69202.0,69201.0,1.07662992]
[1729464031683,0.116422,69202.0,69201.0,1.08276021]
[1729464031921,0.116422,69202.0,69201.0,1.05976021]
[1729464032146,0.116422,69202.0,69201.0,1.04258683]
[1729464032380,0.116422,69202.0,69201.0,1.06471816]
[1729464032593,0.000819,69202.0,69201.0,1.06271816]
[1729464033051,0.116422,69202.0,69201.0,1.08271816]
[1729464033298,0.116422,69202.0,69201.0,1.0720789]
[1729464033750,0.116422,69202.0,69201.0,1.05263012]
[1729464033976,0.116422,69202.0,69201.0,1.02963012]
[1729464034218,0.216422,69202.0,69201.0,1.01963012]
[1729464034458,0.216422,69202.0,69201.0,0.84852699]
[1729464034684,0.216422,69202.0,69201.0,0.84452699]
[1729464034914,0.216422,69202.0,69201.0,1.06531606]
[1729464035135,0.216422,69202.0,69201.0,0.99348614]
[1729464035614,0.216422,69202.0,69201.0,0.99548614]
[1729464035837,0.216422,69202.0,69201.0,0.99348614]
[1729464036303,0.216422,69202.0,69201.0,0.99548614]
[1729464036521,0.216422,69202.0,69201.0,1.09603475]
[1729464037504,0.216422,69202.0,69201.0,1.11903475]
[1729464037742,0.216422,69202.0,69201.0,1.12954656]
[1729464037984,0.216422,69202.0,69201.0,1.12554656]
[1729464038453,0.216422,69202.0,69201.0,1.14116505]
[1729464038944,0.216422,69202.0,69201.0,1.15116505]
[1729464038945,0.000819,69202.0,69201.0,1.15116505]
[1729464039182,0.000819,69202.0,69201.0,1.15616503]
[1729464039416,0.000819,69202.0,69201.0,1.16879459]
[1729464039662,0.000819,69202.0,69201.0,1.26227146]
[1729464039886,0.000819,69202.0,69201.0,1.2930299]
[1729464040133,0.000819,69202.0,69201.0,1.2950299]
[1729464040602,0.000819,69202.0,69201.0,1.2930299]
[1729464041059,0.000819,69202.0,69201.0,1.2910299]
[1729464041301,0.000819,69202.0,69201.0,1.2950299]
[1729464041816,0.000819,69202.0,69201.0,1.2930299]
[1729464042234,0.000819,69202.0,69201.0,1.1794249]
[1729464042689,0.000819,69202.0,69201.0,1.2950299]
[1729464042932,0.000819,69202.0,69201.0,1.26027111]
[1729464043222,0.000819,69202.0,69201.0,1.29301466]
[1729464043465,0.000819,69202.0,69201.0,1.19441042]
[1729464043709,0.000819,69202.0,69201.0,1.30801542]
[1729464043946,0.000819,69202.0,69201.0,1.31001542]
[1729464044170,0.000819,69202.0,69201.0,1.31201542]
[1729464044411,0.000819,69202.0,69201.0,1.32904245]
[1729464044626,0.000819,69202.0,69201.0,1.32704245]
[1729464044909,0.00082,69204.0,69203.0,0.120601]
[1729464045155,0.00082,69204.0,69203.0,1.31998278]
[1729464045381,0.00082,69204.0,69203.0,1.34974865]
[1729464046093,0.00082,69204.0,69203.0,1.23414765]
[1729464046322,0.00082,69204.0,69203.0,1.34974865]
[1729464046562,0.00082,69204.0,69203.0,1.20658759]
[1729464046791,0.00082,69204.0,69203.0,1.23426938]
[1729464047310,0.00082,69204.0,69203.0,1.20826938]
[1729464047534,0.00082,69204.0,69203.0,1.32887038]
[1729464047759,0.00082,69204.0,69203.0,1.33087038]
[1729464047987,0.00082,69204.0,69203.0,1.32687038]
[1729464048230,0.00082,69204.0,69203.0,1.32887038]